bitfinex/quotes_SOLUSD_20240716
["timestamp","ask_amount","ask_price","bid_price","bid_amount"]
[1721109678564,13.4560337,155.95,155.89,15.8835]
[1721109679076,6.5807,155.98,155.89,68.6635]
[1721109679077,13.4560337,155.98,155.89,68.6635]
[1721109679279,13.4560337,155.98,155.9,0.54923027]
[1721109679476,13.4560337,155.98,155.9,1.28200303]
[1721109679761,13.4560337,155.98,155.9,39.32]
[1721109679960,13.4560337,156.0,155.92,19.32]
[1721109680149,13.4560337,156.02,155.93,84.32]
[1721109680350,13.4560337,156.02,155.93,39.32]
[1721109680548,13.4560337,156.02,155.94,46.28190502]
[1721109680759,13.4560337,156.05,155.96,15.4363]
[1721109680972,13.4560337,156.05,155.97,65.0]
[1721109681349,13.4560337,156.02,155.98,1.0428252]
[1721109681677,13.4560337,156.07,155.97,65.0]
[1721109681972,13.4560337,156.05,155.97,65.0]
[1721109682177,13.4560337,156.02,155.97,20.0]
[1721109682474,13.4560337,156.02,155.97,21.2819719]
[1721109682658,13.4560337,156.04,155.97,21.2819719]
[1721109683043,13.4560337,156.04,155.98,1.28195669]
[1721109683250,13.4560337,156.04,155.97,20.0]
[1721109683454,13.4560337,156.06,155.97,20.0]
[1721109683651,13.4560337,156.06,155.98,45.0]
[1721109683953,13.4560337,156.06,155.99,20.0]
[1721109684161,13.4560337,156.06,156.0,45.0]
[1721109684567,13.4560337,156.06,156.01,20.0]
[1721109684787,13.4560337,156.06,156.02,46.28167387]
[1721109684962,13.4560337,156.06,156.03,20.0]
[1721109685268,13.4560337,156.1,156.04,46.28151629]
[1721109685463,4.5342,156.15,156.04,46.28151629]
[1721109685464,13.4560337,156.13,156.05,21.28129212]
[1721109685647,13.4560337,156.13,156.06,45.0]
[1721109685852,13.4560337,156.13,156.07,21.28118147]
[1721109686058,13.4560337,156.13,156.08,46.2811119]
[1721109686257,13.4560337,156.13,156.08,45.0]
[1721109687470,13.4560337,156.11,156.08,45.0]
[1721109690446,13.4560337,156.09,156.08,45.0]
[1721109690654,13.4560337,156.09,156.04,21.2438]
[1721109690655,13.4560337,156.09,156.04,15.0588]
[1721109691355,42.78,156.16,156.04,15.0588]
[1721109691356,13.4560337,156.11,156.04,15.0588]
[1721109691673,13.4560337,156.09,156.04,15.0588]
[1721109691845,13.4560337,156.11,156.04,15.0588]
[1721109692575,13.4560337,156.14,156.04,15.0588]
[1721109692949,13.4560337,156.14,156.05,21.28110131]
[1721109693290,13.4560337,156.14,156.06,45.0]
[1721109693573,13.4560337,156.14,156.07,20.0]
[1721109693775,13.4560337,156.14,156.08,45.0]
[1721109693984,13.4560337,156.14,156.09,20.0]
[1721109694147,13.4560337,156.14,156.1,45.0]
[1721109694348,13.4560337,156.14,156.1,46.28110022]
[1721109694587,13.4560337,156.14,156.1,45.0]
[1721109694775,13.4560337,156.12,156.1,45.0]
[1721109696452,13.4560337,156.12,156.1,46.28098496]
[1721109696679,13.4560337,156.12,156.1,45.0]
[1721109696851,13.4560337,156.12,156.11,21.28097419]
[1721109697053,13.4560337,156.12,156.11,65.0]
[1721109697360,13.4560337,156.14,156.11,65.0]
[1721109697571,13.4560337,156.14,156.12,45.0]
[1721109698078,13.4560337,156.14,156.13,20.0]
[1721109698288,13.4560337,156.16,156.13,65.0]
[1721109698446,13.4560337,156.16,156.13,20.0]
[1721109698652,13.4560337,156.16,156.14,45.0]
[1721109698863,13.4560337,156.14,156.12,45.0]
[1721109700359,13.4560337,156.09,156.04,15.0588]
[1721109700585,13.4560337,156.07,156.04,15.0588]
[1721109700748,13.4560337,156.11,156.04,15.0588]
[1721109701884,13.4560337,156.15,156.04,15.0588]
[1721109702048,13.4560337,156.12,156.04,15.0588]
[1721109702253,13.4560337,156.14,156.05,40.60115825]
[1721109702464,13.4560337,156.14,156.05,39.32]
[1721109703090,8.4560337,156.14,156.06,45.0]
[1721109703295,8.4560337,156.14,156.07,20.0]
[1721109703596,8.4560337,156.14,156.08,45.0]
[1721109703801,8.4560337,156.14,156.09,20.0]
[1721109704090,8.4560337,156.16,156.11,15.2887]
[1721109704271,8.4560337,156.18,156.12,65.0]
[1721109705003,8.4560337,156.18,156.13,1.28067339]
[1721109705284,8.4560337,156.21,156.13,1.28067339]
[1721109705658,8.4560337,156.18,156.13,1.28067339]
[1721109706772,8.4560337,156.2,156.13,1.28067339]
[1721109707678,8.4560337,156.18,156.12,90.6621]
[1721109708072,8.4560337,156.2,156.12,90.6621]
[1721109708894,8.4560337,156.2,156.13,1.28028372]
[1721109709063,8.4560337,156.2,156.14,19.32]
[1721109709379,8.4560337,156.2,156.16,16.578]
[1721109709594,8.4560337,156.2,156.17,65.0]
[1721109710358,8.4560337,156.2,156.18,1.28017918]
[1721109710770,8.4560337,156.2,156.17,65.0]
[1721109712370,8.4560337,156.22,156.17,84.32]
[1721109712570,8.4560337,156.22,156.18,1.28015898]
[1721109712886,8.4560337,156.22,156.17,84.32]
[1721109713086,8.4560337,156.22,156.18,25.8406]
[1721109713304,8.4560337,156.22,156.19,66.28007847]
[1721109713594,8.4560337,156.22,156.19,85.60007847]
[1721109713795,8.4560337,156.22,156.19,65.0]
[1721109713971,0.8098659,156.23,156.19,65.0]
[1721109714386,0.8098659,156.23,156.19,84.32]
[1721109714780,8.4560337,156.21,156.19,65.0]
[1721109715168,9.2658996,156.23,156.19,84.32]
[1721109716503,9.2658996,156.23,156.19,65.0]
[1721109716704,8.4560337,156.21,156.19,65.0]
[1721109717676,9.2658996,156.23,156.19,84.32]
[1721109718611,0.8098659,156.23,156.19,84.32]
[1721109718784,0.8098659,156.23,156.2,0.48908828]
[1721109718986,0.8098659,156.23,156.2,1.27997174]
[1721109719185,0.8098659,156.23,156.19,20.0]
[1721109719393,0.8098659,156.23,156.2,1.28007265]
[1721109719594,0.8098659,156.23,156.19,20.0]
[1721109720281,0.8098659,156.23,156.18,6.5206]
[1721109720499,0.8098659,156.23,156.16,16.578]
[1721109720500,8.4560337,156.2,156.16,16.578]
[1721109720704,8.4560337,156.18,156.16,16.578]
[1721109721003,8.4560337,156.22,156.13,6.5543]
[1721109721306,8.4560337,156.22,156.13,25.8743]
[1721109721493,8.4560337,156.22,156.13,6.5543]
[1721109722397,8.4560337,156.2,156.14,45.0]
[1721109723301,8.4560337,156.18,156.14,45.0]
[1721109724009,8.4560337,156.18,156.15,20.0]
[1721109724199,8.4560337,156.18,156.16,45.0]
[1721109724701,8.4560337,156.18,156.17,1.28046588]
[1721109724883,8.4560337,156.2,156.17,1.28046588]
[1721109726209,8.4560337,156.2,156.16,45.0]
[1721109726508,8.4560337,156.2,156.17,20.0]
[1721109726686,8.4560337,156.2,156.18,46.28030388]
[1721109727080,8.4560337,156.2,156.19,20.0]
[1721109727282,8.4560337,156.2,156.19,65.0]
[1721109728702,8.4560337,156.2,156.13,6.5727]
[1721109729109,8.4560337,156.2,156.13,15.028734]
[1721109729601,8.4560337,156.2,156.13,25.8927]
[1721109729978,8.4560337,156.2,156.14,20.0]
[1721109730202,8.4560337,156.2,156.14,65.0]
[1721109730693,8.4560337,156.18,156.13,6.5727]
[1721109730903,8.4560337,156.18,156.09,6.0503]
[1721109731104,8.4560337,156.16,156.09,6.0503]
[1721109731406,8.4560337,156.16,156.08,16.2697]
[1721109731783,8.4560337,156.16,156.04,25.3703]
[1721109731784,8.4560337,156.13,156.04,22.3883]
[1721109731986,8.4560337,156.09,155.91,276.838]
[1721109732199,8.4560337,156.02,155.92,20.0]
[1721109732585,8.4560337,156.07,155.93,20.60181307]
[1721109732786,8.4560337,156.07,155.95,19.32]
[1721109733106,8.4560337,156.04,155.95,19.32]
[1721109733600,8.4560337,156.06,155.95,19.32]
[1721109733813,8.4560337,156.06,155.97,19.32]
[1721109734184,8.4560337,156.06,155.96,21.2185]
[1721109734185,8.4560337,156.06,155.98,39.32]
[1721109734504,8.4560337,156.08,155.98,39.32]
[1721109734711,8.4560337,156.1,155.98,39.32]
[1721109735211,8.4560337,156.1,156.0,19.32]
[1721109735407,8.4560337,156.1,156.02,19.32]
[1721109735716,8.4560337,156.1,156.03,65.0]
[1721109736290,12.9218,156.16,156.04,35.57]
[1721109736291,8.4560337,156.15,156.04,35.57]
[1721109736591,8.4560337,156.09,156.05,65.0]
[1721109737414,8.4560337,156.11,156.05,65.0]
[1721109738005,8.4560337,156.11,156.05,90.9059]
[1721109738314,8.4560337,156.13,156.05,90.9059]
[1721109740001,8.4560337,156.18,156.07,19.32]
[1721109740313,14.7728337,156.2,156.08,84.32]
[1721109740887,8.4560337,156.2,156.08,84.32]
[1721109741308,8.4560337,156.2,156.1,19.32]
[1721109741511,8.4560337,156.18,156.11,84.32]
[1721109741719,8.4560337,156.18,156.11,65.0]
[1721109742020,8.4560337,156.13,156.11,65.0]
[1721109742190,8.4560337,156.16,156.11,45.0]
[1721109742392,8.4560337,156.16,156.1,45.0]
[1721109742696,8.4560337,156.14,156.1,45.0]
[1721109742896,8.4560337,156.12,156.1,45.0]
[1721109743290,8.4560337,156.15,156.1,45.0]
[1721109743494,8.4560337,156.13,156.1,45.0]
[1721109743698,8.4560337,156.15,156.1,45.0]
[1721109744106,8.4560337,156.17,156.1,45.0]
[1721109744425,8.4560337,156.19,156.1,45.0]
[1721109744710,8.4560337,156.19,156.11,20.0]
[1721109745018,8.4560337,156.19,156.12,46.2806118]
[1721109745194,8.4560337,156.19,156.13,20.0]
[1721109745513,8.4560337,156.17,156.14,45.0]
[1721109746111,8.4560337,156.17,156.15,20.0]
[1721109746320,8.4560337,156.17,156.16,45.0]
[1721109748992,8.4560337,156.19,156.16,65.0]
[1721109749190,8.4560337,156.19,156.17,20.0]
[1721109749502,8.4560337,156.19,156.18,45.0]
[1721109750517,8.4560337,156.19,156.18,65.0]
[1721109751598,8.4560337,156.22,156.18,65.0]
[1721109752218,8.4560337,156.22,156.19,20.0]
[1721109752515,8.4560337,156.22,156.2,45.0]
[1721109754127,8.4560337,156.22,156.21,20.0]
[1721109754307,8.4560337,156.22,156.21,65.0]
[1721109754504,0.8098659,156.23,156.21,66.28012735]
[1721109754703,0.8098659,156.23,156.22,45.0]
[1721109754897,0.8098659,156.23,156.22,65.0]
[1721109764328,0.8098659,156.23,156.22,20.0]
[1721109764507,0.8098659,156.23,156.19,20.0]
[1721109765025,0.8098659,156.23,156.2,0.34854588]
[1721109765834,0.8098659,156.23,156.2,0.49281091]
[1721109766138,0.8098659,156.23,156.2,45.0]
[1721109766339,0.8098659,156.23,156.21,20.0]
[1721109766541,0.8098659,156.23,156.22,45.0]
[1721109766730,0.8098659,156.23,156.22,65.0]
[1721109768012,0.8098659,156.23,156.22,20.0]
[1721109768228,0.8098659,156.23,156.19,40.59978749]
[1721109769440,0.8098659,156.23,156.2,64.32]
[1721109769612,0.8098659,156.23,156.21,20.0]
[1721109769816,0.8098659,156.23,156.22,45.0]
[1721109770123,0.8098659,156.23,156.22,65.0]
[1721109771652,0.8098659,156.23,156.22,84.32]
[1721109771942,0.8098659,156.23,156.22,65.0]
[1721109775338,0.8098659,156.23,156.22,20.0]
[1721109775540,0.8098659,156.23,156.18,43.9798]
[1721109775541,0.8098659,156.23,156.19,20.0]
[1721109776941,0.8098659,156.23,156.2,45.0]
[1721109777143,0.8098659,156.23,156.21,20.0]
[1721109777336,0.8098659,156.23,156.22,45.0]
[1721109777543,0.8098659,156.23,156.22,65.0]
[1721109779548,0.8098659,156.23,156.22,66.27971807]
[1721109780252,0.8098659,156.23,156.22,85.50971807]
[1721109780447,0.8098659,156.23,156.22,84.23]
[1721109780656,0.8098659,156.23,156.22,85.50961647]
[1721109781949,0.8098659,156.23,156.22,20.0]
[1721109782152,0.8098659,156.23,156.19,20.0]
[1721109782729,0.8098659,156.23,156.19,39.23]
[1721109783127,0.8098659,156.23,156.2,45.0]
[1721109783338,0.8098659,156.23,156.21,20.0]
[1721109783557,0.8098659,156.23,156.18,43.9798]
[1721109784236,0.8098659,156.23,156.18,63.2098]
[1721109784556,0.8098659,156.23,156.18,73.2098]
[1721109784857,0.8098659,156.23,156.22,57.02]
[1721109785155,0.8098659,156.23,156.22,123.2996308]
[1721109785537,0.040355,156.25,156.24,19.23]
[1721109785735,0.040355,156.25,156.24,85.50948255]
[1721109785938,0.040355,156.25,156.24,65.0]
[1721109786255,0.040355,156.25,156.24,84.23]
[1721109786760,0.040355,156.25,156.24,85.50948481]
[1721109786942,0.040355,156.25,156.24,21.27948481]
[1721109787145,0.040355,156.25,156.24,20.0]
[1721109787460,0.040355,156.25,156.24,39.23]
[1721109787954,8.4560337,156.31,156.24,39.23]
[1721109788146,8.4560337,156.31,156.26,57.02]
[1721109788339,8.4560337,156.31,156.27,65.0]
[1721109791257,8.4560337,156.31,156.23,52.9465]
[1721109791434,8.4560337,156.29,156.23,15.1565]
[1721109791749,8.4560337,156.29,156.2,37.79]
[1721109792142,14.7468337,156.29,156.19,15.2589]
[1721109792533,8.4560337,156.23,156.15,15.2589]
[1721109792751,8.4560337,156.23,156.16,1.28028076]
[1721109793050,8.4560337,156.23,156.15,15.2589]
[1721109793051,8.4560337,156.23,156.17,37.79]
[1721109793949,8.4560337,156.23,156.18,20.0]
[1721109794255,8.4560337,156.23,156.17,37.79]
[1721109794435,8.4560337,156.26,156.18,1.28006277]
[1721109794835,8.4560337,156.26,156.17,37.79]
[1721109795145,8.4560337,156.23,156.15,15.2589]
[1721109795657,8.4560337,156.23,156.16,20.0]
[1721109796642,8.4560337,156.23,156.16,21.28018899]
[1721109797038,8.4560337,156.23,156.17,57.02]
[1721109797392,8.4560337,156.23,156.18,21.28001545]
[1721109797537,8.4560337,156.25,156.19,45.0]
[1721109797737,8.4560337,156.25,156.2,21.27997802]
[1721109798045,8.4560337,156.25,156.21,45.0]
[1721109798446,8.4560337,156.27,156.22,21.27990815]
[1721109798646,6.2908,156.29,156.22,21.27990815]
[1721109798647,14.7468337,156.29,156.23,45.0]
[1721109798857,8.4560337,156.29,156.24,21.27970704]
[1721109799053,8.4560337,156.27,156.25,45.0]
[1721109799258,8.4560337,156.29,156.26,1.27964671]
[1721109799763,8.4560337,156.31,156.26,20.0]
[1721109799941,8.4560337,156.31,156.27,45.0]
[1721109800142,8.4560337,156.31,156.28,21.27940061]
[1721109800338,8.4560337,156.31,156.29,45.0]
[1721109800570,8.4560337,156.31,156.3,20.0]
[1721109800770,8.4560337,156.31,156.3,65.0]
[1721109801657,8.4560337,156.31,156.3,45.0]
[1721109801869,8.4560337,156.31,156.3,65.0]
[1721109807041,8.4560337,156.33,156.3,65.0]
[1721109807248,8.4560337,156.33,156.31,66.27910002]
[1721109808063,8.4560337,156.33,156.31,65.0]
[1721109808571,8.4560337,156.3,156.25,6.57]
[1721109808948,8.4560337,156.3,156.23,54.3467]
[1721109809352,8.4560337,156.3,156.24,1.27958083]
[1721109810056,8.4560337,156.32,156.24,1.27958083]
[1721109810259,8.4560337,156.32,156.27,19.23]
[1721109810569,8.4560337,156.32,156.28,45.0]
[1721109810759,8.4560337,156.32,156.27,45.0]
[1721109810961,8.4560337,156.32,156.28,20.0]
[1721109811172,8.4560337,156.32,156.29,45.0]
[1721109811361,8.4560337,156.32,156.3,20.0]
[1721109811561,8.4560337,156.32,156.31,45.0]
[1721109811767,8.4560337,156.34,156.31,65.0]
[1721109811947,8.4560337,156.34,156.32,21.27911956]
[1721109812153,8.4560337,156.34,156.33,45.0]
[1721109812557,8.4560337,156.36,156.33,65.0]
[1721109813103,8.4560337,156.34,156.33,65.0]
[1721109813565,8.4560337,156.34,156.27,37.79]
[1721109813984,8.4560337,156.34,156.28,20.0]
[1721109814184,8.4560337,156.34,156.25,20.0]
[1721109814564,8.4560337,156.32,156.25,39.23]
[1721109814874,8.4560337,156.32,156.28,19.23]
[1721109815054,8.4560337,156.32,156.29,20.0]
[1721109815582,8.4560337,156.32,156.28,20.0]
[1721109815755,8.4560337,156.32,156.29,1.27939578]
[1721109816072,8.4560337,156.32,156.28,20.0]
[1721109816276,8.4560337,156.32,156.29,1.27929922]
[1721109816481,8.4560337,156.32,156.28,20.0]
[1721109816781,8.4560337,156.32,156.28,39.23]
[1721109817078,8.4560337,156.34,156.29,64.23]
[1721109817274,8.4560337,156.36,156.3,21.27905375]
[1721109817473,8.4560337,156.36,156.31,45.0]
[1721109817673,8.4560337,156.36,156.32,20.0]
[1721109817880,8.4560337,156.36,156.33,45.0]
[1721109818084,8.4560337,156.36,156.34,20.0]
[1721109818291,8.4560337,156.36,156.35,45.0]
[1721109818590,8.4560337,156.38,156.35,65.0]
[1721109818888,8.4560337,156.38,156.36,21.27887459]
[1721109819072,8.4560337,156.38,156.37,45.0]
[1721109819387,8.4560337,156.38,156.37,65.0]
[1721109819957,8.4560337,156.38,156.37,45.0]
[1721109822783,8.4560337,156.38,156.37,65.0]
[1721109824355,8.4560337,156.38,156.3,37.79]
[1721109824558,8.4560337,156.35,156.31,21.27906491]
[1721109824975,8.4560337,156.35,156.27,15.0535]
[1721109825284,8.4560337,156.33,156.27,15.0535]
[1721109826391,8.4560337,156.33,156.28,20.0]
[1721109826770,8.4560337,156.33,156.29,45.0]
[1721109827087,8.4560337,156.33,156.3,20.0]
[1721109827256,8.4560337,156.33,156.31,45.0]
[1721109827456,8.4560337,156.33,156.32,20.0]
[1721109827761,8.4560337,156.33,156.32,65.0]
[1721109829168,8.4560337,156.35,156.32,65.0]
[1721109829377,8.4560337,156.35,156.33,45.0]
[1721109829564,8.4560337,156.35,156.34,20.0]
[1721109829764,8.4560337,156.35,156.34,65.0]
[1721109830168,8.4560337,156.35,156.27,15.0535]
[1721109830381,8.4560337,156.32,156.27,15.0535]
[1721109830589,8.4560337,156.32,156.23,37.79]
[1721109830766,8.4560337,156.3,156.23,37.79]
[1721109831272,8.4560337,156.3,156.23,57.02]
[1721109831966,8.4560337,156.3,156.25,19.23]
[1721109832167,8.4560337,156.3,156.26,65.0]
[1721109834400,8.4560337,156.33,156.27,1.27945781]
[1721109834605,8.4560337,156.33,156.26,122.02]
[1721109835170,8.4560337,156.33,156.27,1.27924655]
[1721109836285,8.4560337,156.31,156.26,102.79]
[1721109837273,8.4560337,156.31,156.26,45.0]
[1721109839491,8.4560337,156.31,156.27,20.0]
[1721109839667,8.4560337,156.29,156.28,45.0]
[1721109839876,8.4560337,156.29,156.28,65.0]
[1721109841108,8.4560337,156.33,156.28,65.0]
[1721109841416,8.4560337,156.33,156.29,20.0]
[1721109841592,8.4560337,156.33,156.3,45.0]
[1721109841914,8.4560337,156.33,156.31,20.0]
[1721109842074,8.4560337,156.33,156.32,45.0]
[1721109842409,8.4560337,156.33,156.32,65.0]
[1721109843702,8.4560337,156.35,156.32,65.0]
[1721109843912,8.4560337,156.35,156.33,21.27916329]
[1721109844201,8.4560337,156.35,156.34,45.0]
[1721109844702,8.4560337,156.35,156.33,20.0]
[1721109844914,8.4560337,156.32,156.23,19.23]
[1721109845078,8.4560337,156.32,156.27,20.0]
[1721109845904,8.4560337,156.32,156.23,37.79]
[1721109845905,8.4560337,156.32,156.24,39.23]
[1721109846082,8.4560337,156.32,156.24,20.0]
[1721109846518,8.4560337,156.32,156.25,45.0]
[1721109846727,8.4560337,156.32,156.26,20.0]
[1721109846895,8.4560337,156.32,156.27,45.0]
[1721109847091,8.4560337,156.32,156.28,20.0]
[1721109847299,8.4560337,156.32,156.29,45.0]
[1721109847496,8.4560337,156.32,156.3,20.0]
[1721109847695,8.4560337,156.32,156.23,37.79]
[1721109847894,8.4560337,156.3,156.22,15.8645]
[1721109848388,8.4560337,156.25,156.18,15.4428]
[1721109848817,8.4560337,156.25,156.18,34.6728]
[1721109849122,8.4560337,156.25,156.2,57.02]
[1721109849422,8.4560337,156.27,156.21,45.0]
[1721109849618,8.4560337,156.29,156.21,64.23]
[1721109849993,8.4560337,156.29,156.22,20.0]
[1721109850194,8.4560337,156.29,156.23,45.0]
[1721109850509,8.4560337,156.29,156.24,21.27966003]
[1721109850799,8.4560337,156.31,156.24,21.27966003]
[1721109851002,8.4560337,156.31,156.25,45.0]
[1721109851210,8.4560337,156.31,156.26,20.0]
[1721109851426,8.4560337,156.29,156.27,45.0]
[1721109851598,8.4560337,156.29,156.28,20.0]
[1721109851798,8.4560337,156.27,156.18,15.4428]
[1721109853294,8.4560337,156.27,156.19,20.0]
[1721109853519,8.4560337,156.27,156.19,77.02]
[1721109854128,8.4560337,156.27,156.19,57.79]
[1721109854425,8.4560337,156.27,156.2,45.0]
[1721109854628,8.4560337,156.27,156.21,21.27981503]
[1721109854797,8.4560337,156.27,156.22,45.0]
[1721109854998,8.4560337,156.27,156.23,21.27978674]
[1721109855229,13.8401337,156.29,156.24,45.0]
[1721109855430,8.4560337,156.29,156.25,20.0]
[1721109855598,8.4560337,156.29,156.26,45.0]
[1721109856534,8.4560337,156.31,156.27,20.0]
[1721109856705,8.4560337,156.31,156.28,46.27950852]
[1721109856906,8.4560337,156.31,156.29,20.0]
[1721109857131,8.4560337,156.31,156.3,45.0]
[1721109857496,8.4560337,156.31,156.3,65.0]
[1721109861141,8.4560337,156.31,156.3,20.0]
[1721109861329,8.4560337,156.31,156.25,53.9597]
[1721109861330,8.4560337,156.31,156.26,20.0]
[1721109862031,8.4560337,156.31,156.25,16.1697]
[1721109862236,8.4560337,156.29,156.2,6.6095]
[1721109862454,8.4560337,156.29,156.2,25.8395]
[1721109863019,8.4560337,156.29,156.21,1.27970189]
[1721109863218,8.4560337,156.29,156.2,25.8395]
[1721109863640,8.4560337,156.29,156.21,122.02]
[1721109863851,8.4560337,156.29,156.21,102.79]
[1721109864143,8.4560337,156.29,156.21,45.0]
[1721109864440,8.4560337,156.29,156.18,73.4105]
[1721109864651,8.4560337,156.26,156.18,54.1805]
[1721109865222,8.4560337,156.23,156.11,25.6209938]
[1721109865443,8.4560337,156.19,156.12,37.79]
[1721109865612,8.4560337,156.21,156.12,37.79]
[1721109865819,8.4560337,156.21,156.13,19.23]
[1721109866345,8.4560337,156.22,156.13,19.23]
[1721109866514,8.4560337,156.22,156.15,37.79]
[1721109866838,8.4560337,156.22,156.15,57.02]
[1721109867034,8.4560337,156.22,156.16,45.0]
[1721109867231,8.4560337,156.22,156.17,20.0]
[1721109867453,8.4560337,156.22,156.18,45.0]
[1721109867818,8.4560337,156.22,156.19,20.0]
[1721109868015,8.4560337,156.22,156.2,45.0]
[1721109868237,8.4560337,156.24,156.21,20.0]
[1721109868544,8.4560337,156.24,156.22,45.0]
[1721109868715,8.4560337,156.24,156.23,20.0]
[1721109868921,8.4560337,156.24,156.23,65.0]
[1721109870327,14.8534337,156.29,156.23,65.0]
[1721109870525,8.4560337,156.27,156.24,45.0]
[1721109870733,8.4560337,156.27,156.25,20.0]
[1721109870935,8.4560337,156.27,156.26,45.0]
[1721109871136,8.4560337,156.27,156.26,65.0]
[1721109871432,8.4560337,156.27,156.26,20.0]
[1721109871756,8.4560337,156.25,156.18,60.6227]
[1721109872064,8.4560337,156.25,156.19,20.0]
[1721109872347,8.4560337,156.23,156.19,20.0]
[1721109872845,8.4560337,156.25,156.19,20.0]
[1721109873042,8.4560337,156.23,156.2,45.0]
[1721109873231,8.4560337,156.23,156.21,20.0]
[1721109873435,8.4560337,156.23,156.22,45.0]
[1721109873634,8.4560337,156.23,156.22,65.0]
[1721109874448,8.4560337,156.25,156.22,65.0]
[1721109874648,8.4560337,156.25,156.23,20.0]
[1721109874829,8.4560337,156.25,156.24,45.0]
[1721109875026,8.4560337,156.25,156.24,65.0]
[1721109876533,8.4560337,156.27,156.24,65.0]
[1721109876861,8.4560337,156.27,156.25,21.27968034]
[1721109877023,8.4560337,156.32,156.26,45.0]
[1721109877227,8.4560337,156.3,156.27,21.27956328]
[1721109877437,8.4560337,156.32,156.28,45.0]
[1721109877962,8.4560337,156.3,156.28,45.0]
[1721109886675,8.4560337,156.32,156.28,45.0]
[1721109887050,8.4560337,156.32,156.29,20.0]
[1721109887397,8.4560337,156.32,156.3,46.27942343]
[1721109887754,8.4560337,156.32,156.3,45.0]
[1721109894163,8.4560337,156.3,156.25,15.267]
[1721109894362,8.4560337,156.3,156.26,20.0]
[1721109895016,8.4560337,156.28,156.26,20.0]
[1721109895501,8.4560337,156.28,156.27,45.0]
[1721109895685,8.4560337,156.28,156.27,20.0]
[1721109896396,8.4560337,156.28,156.23,20.0]
[1721109897174,8.4560337,156.28,156.24,45.0]
[1721109897478,8.4560337,156.28,156.25,20.0]
[1721109897674,8.4560337,156.28,156.26,45.0]
[1721109897889,8.4560337,156.28,156.27,20.0]
[1721109898187,8.4560337,156.28,156.27,65.0]
[1721109898395,8.4560337,156.3,156.27,65.0]
[1721109898603,8.4560337,156.3,156.28,46.27954204]
[1721109898810,8.4560337,156.3,156.29,20.0]
[1721109898988,8.4560337,156.3,156.29,65.0]
[1721109900285,8.4560337,156.3,156.29,45.0]
[1721109900499,8.4560337,156.3,156.29,65.0]
[1721109901103,8.4560337,156.3,156.29,20.0]
[1721109901396,8.4560337,156.3,156.24,20.0]
[1721109901604,8.4560337,156.26,156.19,8.456034]
[1721109901999,8.4560337,156.24,156.16,15.0791]
[1721109902186,8.4560337,156.21,156.16,15.0791]
[1721109902385,8.4560337,156.26,156.16,15.0791]
[1721109902792,8.4560337,156.23,156.16,15.0791]
[1721109904277,8.4560337,156.23,156.17,20.0]
[1721109904502,8.4560337,156.21,156.17,20.0]
[1721109904699,8.4560337,156.19,156.18,45.0]
[1721109904899,8.4560337,156.19,156.13,6.2837]
[1721109905292,8.4560337,156.19,156.12,15.0562]
[1721109906718,8.4560337,156.17,156.12,15.0562]
[1721109907585,8.4560337,156.17,156.13,20.0]
[1721109908122,8.4560337,156.17,156.14,45.0]
[1721109908283,8.4560337,156.17,156.15,20.0]
[1721109908486,8.4560337,156.17,156.16,45.0]
[1721109908792,49.5744,156.25,156.16,45.0]
[1721109908793,8.4560337,156.23,156.16,65.0]
[1721109909099,8.4560337,156.21,156.17,20.0]
[1721109909299,8.4560337,156.21,156.18,45.0]
[1721109909490,8.4560337,156.23,156.19,20.0]
[1721109909692,8.4560337,156.23,156.2,45.0]
[1721109910027,8.4560337,156.23,156.21,20.0]
[1721109910185,8.4560337,156.23,156.22,45.0]
[1721109911619,8.4560337,156.2,156.12,15.0562]
[1721109911827,8.4560337,156.18,156.12,15.0562]
[1721109912991,8.4560337,156.18,156.13,1.280735]